[Event "*** SCC Grand Prix: Titled Tuesday Blitz"]
[Site "Chess.com"]
[Date "2020.10.06"]
[Round "2"]
[White "ExcitingTrap"]
[Black "ExtremeLearner"]
[Result "0-1"]
[WhiteElo "2249"]
[BlackElo "2448"]
[TimeControl "180+1"]
[EndTime "10:18:50 PDT"]
[Termination "ExtremeLearner won by checkmate"]

1. e4 {[%clk 0:03:00.9]} 1... c6 {[%clk 0:02:58.7]} 2. d4 {[%clk 0:02:59.8]}
2... d5 {[%clk 0:02:58.7]} 3. e5 {[%clk 0:03:00.4]} 3... Bf5 {[%clk 0:02:58.2]}
4. h4 {[%clk 0:03:00.6]} 4... h5 {[%clk 0:02:57.5]} 5. Bd3 {[%clk 0:03:00.8]}
5... Bxd3 {[%clk 0:02:56.5]} 6. Qxd3 {[%clk 0:03:01.7]} 6... Qa5+ {[%clk
0:02:56.1]} 7. Nc3 {[%clk 0:02:56.4]} 7... Qa6 {[%clk 0:02:54]} 8. e6 {[%clk
0:02:55.8]} 8... Qxd3 {[%clk 0:02:51.4]} 9. exf7+ {[%clk 0:02:56.7]} 9... Kxf7
{[%clk 0:02:51.8]} 10. cxd3 {[%clk 0:02:57.6]} 10... g6 {[%clk 0:02:45.8]} 11.
Nf3 {[%clk 0:02:56.1]} 11... Nd7 {[%clk 0:02:20.6]} 12. Bg5 {[%clk 0:02:54.4]}
12... Ngf6 {[%clk 0:02:14]} 13. O-O {[%clk 0:02:48.5]} 13... Bg7 {[%clk
0:02:07.4]} 14. Rfe1 {[%clk 0:02:47.8]} 14... Rae8 {[%clk 0:02:01.1]} 15. Bf4
{[%clk 0:02:39.3]} 15... Rhf8 {[%clk 0:01:42.5]} 16. Ng5+ {[%clk 0:02:17.7]}
16... Kg8 {[%clk 0:01:42.1]} 17. Ne6 {[%clk 0:02:17.7]} 17... Rf7 {[%clk
0:01:39]} 18. Ng5 {[%clk 0:02:13.7]} 18... Rff8 {[%clk 0:01:36.3]} 19. Ne6
{[%clk 0:02:13.6]} 19... Rf7 {[%clk 0:01:36.4]} 20. Ne2 {[%clk 0:01:59.5]} 20...
Nh7 {[%clk 0:01:08.1]} 21. Be3 {[%clk 0:01:46.9]} 21... Rf6 {[%clk 0:00:58.5]}
22. N2f4 {[%clk 0:01:40.5]} 22... Ndf8 {[%clk 0:00:44.7]} 23. Bd2 {[%clk
0:01:28]} 23... Nxe6 {[%clk 0:00:40.3]} 24. Nxe6 {[%clk 0:01:28.9]} 24... Nf8
{[%clk 0:00:38.7]} 25. Nc7 {[%clk 0:01:25.2]} 25... Rc8 {[%clk 0:00:36.6]} 26.
Rxe7 {[%clk 0:01:06.9]} 26... Rf7 {[%clk 0:00:33.1]} 27. Rae1 {[%clk 0:01:07.1]}
27... Rxc7 {[%clk 0:00:31.5]} 28. Re8 {[%clk 0:00:58.9]} 28... Bxd4 {[%clk
0:00:26.4]} 29. R1e2 {[%clk 0:00:57.9]} 29... Kg7 {[%clk 0:00:19.4]} 30. Ra8
{[%clk 0:00:52.3]} 30... Nh7 {[%clk 0:00:14.3]} 31. Ree8 {[%clk 0:00:48.4]}
31... Rxf2 {[%clk 0:00:07.9]} 32. Bc3 {[%clk 0:00:31.6]} 32... Rf4+ {[%clk
0:00:05.1]} 33. Bxd4+ {[%clk 0:00:27.4]} 33... Rxd4 {[%clk 0:00:06]} 34. Rg8+
{[%clk 0:00:25.9]} 34... Kf6 {[%clk 0:00:05.8]} 35. Rxa7 {[%clk 0:00:24.9]}
35... Rxd3 {[%clk 0:00:05.4]} 36. Ra4 {[%clk 0:00:21.8]} 36... Kf5 {[%clk
0:00:05]} 37. Kh2 {[%clk 0:00:15.9]} 37... Nf6 {[%clk 0:00:05.4]} 38. Rf8 {[%clk
0:00:15.1]} 38... Re7 {[%clk 0:00:05.6]} 39. Raa8 {[%clk 0:00:07.3]} 39... Ke6
{[%clk 0:00:03.7]} 40. Ra4 {[%clk 0:00:02.9]} 40... d4 {[%clk 0:00:02.8]} 41. g3
{[%clk 0:00:02]} 41... Ng4+ {[%clk 0:00:03.7]} 42. Kg2 {[%clk 0:00:02.6]} 42...
Rd2+ {[%clk 0:00:04.6]} 43. Kf3 {[%clk 0:00:03.1]} 43... Kd7 {[%clk 0:00:05.5]}
44. Rf6 {[%clk 0:00:02.4]} 44... Re3+ {[%clk 0:00:06.1]} 45. Kf4 {[%clk
0:00:02.6]} 45... Rf2+ {[%clk 0:00:07]} 46. Kg5 {[%clk 0:00:03.5]} 46... Re5+
{[%clk 0:00:07.7]} 47. Kxg6 {[%clk 0:00:02.7]} 47... Rxf6+ {[%clk 0:00:08.2]}
48. Kg7 {[%clk 0:00:03.3]} 48... Re7+ {[%clk 0:00:09]} 49. Kg8 {[%clk
0:00:04.2]} 49... Rg6+ {[%clk 0:00:07.9]} 50. Kf8 {[%clk 0:00:04.3]} 50... Rgg7
{[%clk 0:00:08.3]} 51. Rxd4+ {[%clk 0:00:03.7]} 51... Kc7 {[%clk 0:00:08.7]} 52.
Rf4 {[%clk 0:00:04.6]} 52... Nh6 {[%clk 0:00:08.8]} 53. Rf5 {[%clk 0:00:03.7]}
53... Rd7 {[%clk 0:00:09.2]} 54. g4 {[%clk 0:00:03.9]} 54... Rg8# {[%clk
0:00:09.7]} 0-1

[Event "*** SCC Grand Prix: Titled Tuesday Blitz"]
[Site "Chess.com"]
[Date "2020.10.06"]
[Round "2"]
[White "szefru"]
[Black "Nara_Kh"]
[Result "1-0"]
[WhiteElo "2177"]
[BlackElo "2390"]
[TimeControl "180+1"]
[EndTime "10:18:50 PDT"]
[Termination "szefru won by resignation"]

1. e4 {[%clk 0:02:59.1]} 1... c5 {[%clk 0:02:59.5]} 2. Nf3 {[%clk 0:02:59.1]}
2... d6 {[%clk 0:02:59.8]} 3. d4 {[%clk 0:02:58.4]} 3... Nf6 {[%clk 0:02:59.9]}
4. Nc3 {[%clk 0:02:56.3]} 4... cxd4 {[%clk 0:03:00.3]} 5. Qxd4 {[%clk
0:02:57.2]} 5... a6 {[%clk 0:02:59.8]} 6. Bg5 {[%clk 0:02:53.2]} 6... Nc6 {[%clk
0:02:59.7]} 7. Qd2 {[%clk 0:02:53.1]} 7... e6 {[%clk 0:02:55.1]} 8. Be2 {[%clk
0:02:49.3]} 8... Be7 {[%clk 0:02:54.7]} 9. O-O-O {[%clk 0:02:47.8]} 9... Qc7
{[%clk 0:02:50.9]} 10. h4 {[%clk 0:02:47.1]} 10... b5 {[%clk 0:02:49.9]} 11. h5
{[%clk 0:02:42]} 11... h6 {[%clk 0:02:30]} 12. Bh4 {[%clk 0:02:41.5]} 12... Bb7
{[%clk 0:02:25.5]} 13. Rdg1 {[%clk 0:02:38.9]} 13... Ne5 {[%clk 0:02:10.2]} 14.
Nxe5 {[%clk 0:02:35.1]} 14... dxe5 {[%clk 0:02:09.8]} 15. f3 {[%clk 0:02:34.1]}
15... Rd8 {[%clk 0:02:04.3]} 16. Bd3 {[%clk 0:02:31]} 16... b4 {[%clk
0:02:02.9]} 17. Ne2 {[%clk 0:02:30.2]} 17... Qa5 {[%clk 0:01:52.2]} 18. Kb1
{[%clk 0:02:27.4]} 18... Qb6 {[%clk 0:01:27.3]} 19. g4 {[%clk 0:02:24.3]} 19...
Bc5 {[%clk 0:01:18]} 20. Rg2 {[%clk 0:02:19.8]} 20... Be3 {[%clk 0:01:17.4]} 21.
Qe1 {[%clk 0:02:17.6]} 21... a5 {[%clk 0:01:12.1]} 22. g5 {[%clk 0:02:11.6]}
22... hxg5 {[%clk 0:00:46.3]} 23. Bxg5 {[%clk 0:02:12.5]} 23... Nxh5 {[%clk
0:00:32.3]} 24. Bxd8 {[%clk 0:02:05.5]} 24... Kxd8 {[%clk 0:00:28]} 25. Ng3
{[%clk 0:01:50.4]} 25... g6 {[%clk 0:00:25.4]} 26. Nxh5 {[%clk 0:01:48.9]} 26...
gxh5 {[%clk 0:00:25.5]} 27. Qh4+ {[%clk 0:01:44.1]} 27... Kc8 {[%clk 0:00:23.8]}
28. Qf6 {[%clk 0:01:40.5]} 28... Rd8 {[%clk 0:00:21]} 29. Qxf7 {[%clk
0:01:17.3]} 29... Ba6 {[%clk 0:00:14.8]} 30. Bxa6+ {[%clk 0:01:01.4]} 30... Qxa6
{[%clk 0:00:15.7]} 31. Rg8 {[%clk 0:01:01.4]} 31... Qd6 {[%clk 0:00:12.9]} 32.
Rxd8+ {[%clk 0:00:59.2]} 32... Kxd8 {[%clk 0:00:13.8]} 33. Qxh5 {[%clk
0:00:53.9]} 33... a4 {[%clk 0:00:13.9]} 34. Qh8+ {[%clk 0:00:52]} 34... Kc7
{[%clk 0:00:14.3]} 35. Rh7+ {[%clk 0:00:51.5]} 35... Kb6 {[%clk 0:00:14.6]} 36.
Rh1 {[%clk 0:00:44.4]} 36... a3 {[%clk 0:00:14.8]} 37. Qa8 {[%clk 0:00:29.5]}
37... axb2 {[%clk 0:00:06.8]} 38. Qa4 {[%clk 0:00:18.3]} 38... Kc5 {[%clk
0:00:07.1]} 39. Qa5+ {[%clk 0:00:17.4]} 39... Kc4 {[%clk 0:00:07.6]} 40. Qa4
{[%clk 0:00:13.3]} 40... Kc3 {[%clk 0:00:07.2]} 41. Qb3+ {[%clk 0:00:13.4]}
41... Kd2 {[%clk 0:00:07.8]} 42. c4 {[%clk 0:00:07.1]} 42... bxc3 {[%clk
0:00:07.9]} 43. Rd1+ {[%clk 0:00:07.1]} 43... Ke2 {[%clk 0:00:07.4]} 44. Rxd6
{[%clk 0:00:07.5]} 44... Kxf3 {[%clk 0:00:07.8]} 45. Qxc3 {[%clk 0:00:07.9]}
45... Kxe4 {[%clk 0:00:08.1]} 46. Rd3 {[%clk 0:00:08.3]} 46... Bd4 {[%clk
0:00:07.8]} 47. Rxd4+ {[%clk 0:00:08.9]} 47... exd4 {[%clk 0:00:08.7]} 48. Qd2
{[%clk 0:00:09.6]} 48... e5 {[%clk 0:00:08.9]} 49. Kxb2 {[%clk 0:00:09.6]} 49...
Kd5 {[%clk 0:00:09.5]} 50. Kb3 {[%clk 0:00:10.3]} 50... e4 {[%clk 0:00:10]} 51.
a4 {[%clk 0:00:10.5]} 51... e3 {[%clk 0:00:10.6]} 52. Qd3 {[%clk 0:00:11.1]}
52... Ke5 {[%clk 0:00:11.1]} 53. a5 {[%clk 0:00:11.6]} 1-0

[Event "*** SCC Grand Prix: Titled Tuesday Blitz"]
[Site "Chess.com"]
[Date "2020.10.06"]
[Round "2"]
[White "ENajer77"]
[Black "renehp"]
[Result "1-0"]
[WhiteElo "2712"]
[BlackElo "2481"]
[TimeControl "180+1"]
[EndTime "10:18:51 PDT"]
[Termination "ENajer77 won by resignation"]

1. e4 {[%clk 0:01:52.5]} 1... d5 {[%clk 0:02:58.2]} 2. exd5 {[%clk 0:01:52.1]}
2... Qxd5 {[%clk 0:02:58.5]} 3. Nc3 {[%clk 0:01:52.4]} 3... Qd6 {[%clk
0:02:58.9]} 4. d4 {[%clk 0:01:51.1]} 4... Nf6 {[%clk 0:02:58.8]} 5. Nb5 {[%clk
0:01:51.1]} 5... Qb6 {[%clk 0:02:58.8]} 6. Nf3 {[%clk 0:01:49.2]} 6... c6 {[%clk
0:02:57.7]} 7. Na3 {[%clk 0:01:46.4]} 7... g6 {[%clk 0:02:54.8]} 8. Nc4 {[%clk
0:01:44.5]} 8... Qc7 {[%clk 0:02:49.6]} 9. Nce5 {[%clk 0:01:42]} 9... Bg7 {[%clk
0:02:48.4]} 10. Bc4 {[%clk 0:01:34.4]} 10... O-O {[%clk 0:02:47.1]} 11. O-O
{[%clk 0:01:34.3]} 11... Nbd7 {[%clk 0:02:36.8]} 12. Nxf7 {[%clk 0:01:24.1]}
12... Rxf7 {[%clk 0:02:25]} 13. Ng5 {[%clk 0:01:15.9]} 13... Nd5 {[%clk
0:02:24.9]} 14. Nxf7 {[%clk 0:01:15.5]} 14... Kxf7 {[%clk 0:02:24.6]} 15. Re1
{[%clk 0:01:15.2]} 15... Nf6 {[%clk 0:02:24.3]} 16. Bb3 {[%clk 0:01:06.7]} 16...
Kf8 {[%clk 0:02:19.6]} 17. c4 {[%clk 0:01:05.4]} 17... Nb6 {[%clk 0:02:19.4]}
18. Bg5 {[%clk 0:00:54.2]} 18... Bf5 {[%clk 0:02:14.5]} 19. Qe2 {[%clk
0:00:47.6]} 19... Rd8 {[%clk 0:02:11.5]} 20. Rad1 {[%clk 0:00:47.5]} 20... h6
{[%clk 0:02:03.3]} 21. Bh4 {[%clk 0:00:47]} 21... g5 {[%clk 0:01:57.4]} 22. Bg3
{[%clk 0:00:47.1]} 22... Qd7 {[%clk 0:01:55.8]} 23. d5 {[%clk 0:00:46.6]} 23...
cxd5 {[%clk 0:01:52.8]} 24. cxd5 {[%clk 0:00:44.4]} 24... Ne4 {[%clk 0:01:35.6]}
25. Qf3 {[%clk 0:00:36.2]} 25... Nd6 {[%clk 0:01:33.4]} 26. Bxd6 {[%clk
0:00:35]} 26... exd6 {[%clk 0:01:32.4]} 27. g4 {[%clk 0:00:35]} 27... Kg8 {[%clk
0:01:19.8]} 28. Qxf5 {[%clk 0:00:35.1]} 28... Qxf5 {[%clk 0:01:14.6]} 29. gxf5
{[%clk 0:00:36]} 29... Rf8 {[%clk 0:01:15.2]} 30. Re7 {[%clk 0:00:32.9]} 30...
Rxf5 {[%clk 0:01:13]} 31. Rxb7 {[%clk 0:00:32.7]} 31... Rf4 {[%clk 0:01:07.1]}
32. Re1 {[%clk 0:00:28.6]} 32... Be5 {[%clk 0:01:06.2]} 33. Rxa7 {[%clk
0:00:25.9]} 33... Kf8 {[%clk 0:01:02.4]} 34. Rb7 {[%clk 0:00:20.8]} 34... Nc4
{[%clk 0:01:02.2]} 35. Rb4 {[%clk 0:00:14.4]} 35... Nxb2 {[%clk 0:00:58.1]} 36.
Rxf4+ {[%clk 0:00:14.4]} 36... gxf4 {[%clk 0:00:59]} 37. Kg2 {[%clk 0:00:13]}
37... Nd3 {[%clk 0:00:57.9]} 38. Re4 {[%clk 0:00:11.5]} 38... Nc5 {[%clk
0:00:57.3]} 39. Rc4 {[%clk 0:00:11.3]} 39... Ke7 {[%clk 0:00:56]} 40. Bc2 {[%clk
0:00:11.8]} 40... Kf6 {[%clk 0:00:56]} 41. Kf3 {[%clk 0:00:11.9]} 41... Kg5
{[%clk 0:00:55.6]} 42. a4 {[%clk 0:00:12.2]} 42... Bf6 {[%clk 0:00:50.2]} 43. a5
{[%clk 0:00:12.7]} 43... Bd8 {[%clk 0:00:50.6]} 44. Rxf4 {[%clk 0:00:09.9]}
44... Bxa5 {[%clk 0:00:49.8]} 45. Rf5+ {[%clk 0:00:10.5]} 45... Kh4 {[%clk
0:00:49.3]} 46. Rf6 {[%clk 0:00:10.6]} 46... Bc7 {[%clk 0:00:43.4]} 47. Rxh6+
{[%clk 0:00:10.4]} 47... Kg5 {[%clk 0:00:43.9]} 48. Rg6+ {[%clk 0:00:11.3]}
48... Kh5 {[%clk 0:00:43.9]} 49. Rg7 {[%clk 0:00:12.2]} 49... Ba5 {[%clk
0:00:40.8]} 50. Rh7+ {[%clk 0:00:12.8]} 50... Kg5 {[%clk 0:00:40.7]} 51. h4+
{[%clk 0:00:13.7]} 51... Kf6 {[%clk 0:00:41.2]} 52. h5 {[%clk 0:00:14.1]} 52...
Bc3 {[%clk 0:00:40.2]} 53. Rh6+ {[%clk 0:00:14]} 53... Ke5 {[%clk 0:00:39.4]}
54. Rg6 {[%clk 0:00:14.1]} 54... Kxd5 {[%clk 0:00:36.5]} 55. h6 {[%clk
0:00:14.7]} 55... Nd7 {[%clk 0:00:36.7]} 56. Kg2 {[%clk 0:00:12.1]} 56... Be5
{[%clk 0:00:29.7]} 57. h7 {[%clk 0:00:11.2]} 57... Kd4 {[%clk 0:00:26.9]} 58.
Rg8 {[%clk 0:00:11]} 58... Nc5 {[%clk 0:00:25.9]} 59. h8=Q {[%clk 0:00:10.3]}
59... Bxh8 {[%clk 0:00:26.3]} 60. Rxh8 {[%clk 0:00:10.9]} 60... Kc3 {[%clk
0:00:27.2]} 61. Bf5 {[%clk 0:00:11]} 61... d5 {[%clk 0:00:27.1]} 62. Rd8 {[%clk
0:00:11.2]} 62... d4 {[%clk 0:00:27.1]} 63. Rc8 {[%clk 0:00:11.7]} 63... Kb4
{[%clk 0:00:27]} 64. Rxc5 {[%clk 0:00:12.2]} 64... Kxc5 {[%clk 0:00:27.2]} 65.
Kf3 {[%clk 0:00:12.8]} 65... Kd5 {[%clk 0:00:28.1]} 66. Bd3 {[%clk 0:00:12.6]}
1-0

[Event "*** SCC Grand Prix: Titled Tuesday Blitz"]
[Site "Chess.com"]
[Date "2020.10.06"]
[Round "2"]
[White "cassoulet"]
[Black "Snegokhod"]
[Result "0-1"]
[WhiteElo "2678"]
[BlackElo "2394"]
[TimeControl "180+1"]
[EndTime "10:18:55 PDT"]
[Termination "Snegokhod won by resignation"]

1. d4 {[%clk 0:03:00]} 1... Nf6 {[%clk 0:02:59.6]} 2. c4 {[%clk 0:02:59.8]} 2...
g6 {[%clk 0:02:59.7]} 3. f3 {[%clk 0:02:59.3]} 3... d5 {[%clk 0:02:58.1]} 4.
cxd5 {[%clk 0:02:58.9]} 4... Nxd5 {[%clk 0:02:59]} 5. e4 {[%clk 0:02:59.5]} 5...
Nb6 {[%clk 0:02:58.7]} 6. Nc3 {[%clk 0:03:00]} 6... Bg7 {[%clk 0:02:58.5]} 7.
Be3 {[%clk 0:03:00.9]} 7... e5 {[%clk 0:02:58.2]} 8. d5 {[%clk 0:03:00.4]} 8...
c6 {[%clk 0:02:58]} 9. Qd2 {[%clk 0:02:58]} 9... cxd5 {[%clk 0:02:57.9]} 10.
exd5 {[%clk 0:02:58.9]} 10... h5 {[%clk 0:02:52.2]} 11. Bb5+ {[%clk 0:02:42.6]}
11... Bd7 {[%clk 0:02:50.9]} 12. Bxd7+ {[%clk 0:02:39.5]} 12... N8xd7 {[%clk
0:02:50.5]} 13. Nge2 {[%clk 0:02:40.4]} 13... Nc4 {[%clk 0:02:48.9]} 14. Qc1
{[%clk 0:02:40]} 14... Nxe3 {[%clk 0:02:48.5]} 15. Qxe3 {[%clk 0:02:40.9]} 15...
O-O {[%clk 0:02:47.7]} 16. O-O {[%clk 0:02:41]} 16... Qb6 {[%clk 0:02:41.6]} 17.
Qxb6 {[%clk 0:02:35.5]} 17... Nxb6 {[%clk 0:02:40.8]} 18. Rfd1 {[%clk
0:02:34.9]} 18... Rfd8 {[%clk 0:02:38.1]} 19. Rac1 {[%clk 0:02:31.5]} 19... Rd7
{[%clk 0:02:37.1]} 20. a4 {[%clk 0:02:00.1]} 20... Rad8 {[%clk 0:02:34.8]} 21.
Nb5 {[%clk 0:01:44.3]} 21... a6 {[%clk 0:02:30.6]} 22. Nbc3 {[%clk 0:01:36.7]}
22... Nxd5 {[%clk 0:02:24.9]} 23. Nxd5 {[%clk 0:01:37.6]} 23... Rxd5 {[%clk
0:02:24.4]} 24. Rxd5 {[%clk 0:01:38.5]} 24... Rxd5 {[%clk 0:02:24.7]} 25. Rc8+
{[%clk 0:01:39.4]} 25... Kh7 {[%clk 0:02:24.3]} 26. Rc7 {[%clk 0:01:39]} 26...
b5 {[%clk 0:02:14.3]} 27. Rxf7 {[%clk 0:01:32.8]} 27... Rd2 {[%clk 0:01:57.5]}
28. Nc3 {[%clk 0:01:31.5]} 28... Rxb2 {[%clk 0:01:45.6]} 29. axb5 {[%clk
0:01:30.9]} 29... axb5 {[%clk 0:01:45.3]} 30. Rb7 {[%clk 0:01:31]} 30... b4
{[%clk 0:01:36.6]} 31. Nd5 {[%clk 0:01:31.4]} 31... b3 {[%clk 0:01:25.8]} 32. h4
{[%clk 0:01:31.5]} 32... Kh6 {[%clk 0:01:17.1]} 33. Kh2 {[%clk 0:01:21.3]} 33...
e4 {[%clk 0:01:16.6]} 34. fxe4 {[%clk 0:01:19.1]} 34... Be5+ {[%clk 0:01:16.4]}
35. Kh3 {[%clk 0:01:19.7]} 35... Rb1 {[%clk 0:01:11.7]} 36. g3 {[%clk
0:01:20.1]} 36... b2 {[%clk 0:01:10.8]} 37. Kg2 {[%clk 0:01:16.8]} 37... Rc1
{[%clk 0:01:02.3]} 38. Ne7 {[%clk 0:01:08.8]} 38... g5 {[%clk 0:00:49.4]} 39.
Rb6+ {[%clk 0:00:56]} 39... Kh7 {[%clk 0:00:46]} 40. hxg5 {[%clk 0:00:53.2]}
40... b1=Q {[%clk 0:00:45.6]} 41. g6+ {[%clk 0:00:53.6]} 41... Kg7 {[%clk
0:00:39]} 42. Nf5+ {[%clk 0:00:53.1]} 42... Kf8 {[%clk 0:00:39.2]} 43. Rxb1
{[%clk 0:00:50.8]} 43... Rxb1 {[%clk 0:00:39.4]} 44. Kh3 {[%clk 0:00:51.7]}
44... Rb6 {[%clk 0:00:37.1]} 45. Kh4 {[%clk 0:00:43.2]} 45... Rxg6 {[%clk
0:00:36.9]} 46. Kxh5 {[%clk 0:00:43.4]} 46... Ra6 {[%clk 0:00:30.1]} 47. g4
{[%clk 0:00:44.3]} 47... Kf7 {[%clk 0:00:29.6]} 48. g5 {[%clk 0:00:44.5]} 48...
Ra1 {[%clk 0:00:27.4]} 49. Nh6+ {[%clk 0:00:40]} 49... Ke6 {[%clk 0:00:27.7]}
50. Kg6 {[%clk 0:00:39.3]} 50... Rg1 {[%clk 0:00:27.5]} 51. Kh5 {[%clk
0:00:25.7]} 51... Bf4 {[%clk 0:00:25.8]} 52. Ng4 {[%clk 0:00:26.2]} 52... Bc1
{[%clk 0:00:20.1]} 53. e5 {[%clk 0:00:23.2]} 53... Kf5 {[%clk 0:00:16.5]} 54.
Nh6+ {[%clk 0:00:23.7]} 54... Kxe5 {[%clk 0:00:15.3]} 55. Ng4+ {[%clk 0:00:22]}
55... Ke6 {[%clk 0:00:14.8]} 56. Kh4 {[%clk 0:00:18.8]} 56... Kf5 {[%clk
0:00:11.8]} 57. Nh6+ {[%clk 0:00:16.8]} 57... Kg6 {[%clk 0:00:12]} 58. Ng4
{[%clk 0:00:17.5]} 58... Bxg5+ {[%clk 0:00:11.7]} 59. Kh3 {[%clk 0:00:18.4]}
59... Ra1 {[%clk 0:00:11.4]} 60. Ne5+ {[%clk 0:00:18.6]} 60... Kh5 {[%clk
0:00:11.4]} 61. Nf3 {[%clk 0:00:19.1]} 61... Ra3 {[%clk 0:00:11.7]} 62. Kg3
{[%clk 0:00:19.3]} 62... Bd8 {[%clk 0:00:10.4]} 63. Kf4 {[%clk 0:00:19.3]} 63...
Bc7+ {[%clk 0:00:10.6]} 64. Ke4 {[%clk 0:00:19.8]} 64... Ra4+ {[%clk 0:00:10.8]}
65. Ke3 {[%clk 0:00:19.8]} 65... Kg4 {[%clk 0:00:11.2]} 66. Nd2 {[%clk
0:00:19.9]} 66... Bf4+ {[%clk 0:00:10.4]} 67. Kd3 {[%clk 0:00:20]} 67... Bxd2
{[%clk 0:00:11.3]} 0-1

[Event "*** SCC Grand Prix: Titled Tuesday Blitz"]
[Site "Chess.com"]
[Date "2020.10.06"]
[Round "2"]
[White "killer311"]
[Black "kirillgenius"]
[Result "0-1"]
[WhiteElo "2433"]
[BlackElo "2284"]
[TimeControl "180+1"]
[EndTime "10:18:57 PDT"]
[Termination "kirillgenius won by checkmate"]

1. d4 {[%clk 0:03:00.9]} 1... Nf6 {[%clk 0:02:59.3]} 2. Nf3 {[%clk 0:03:00.1]}
2... d5 {[%clk 0:02:59.1]} 3. c4 {[%clk 0:03:00.3]} 3... e6 {[%clk 0:02:59.4]}
4. e3 {[%clk 0:03:00.6]} 4... Be7 {[%clk 0:02:59.8]} 5. Nc3 {[%clk 0:03:00.2]}
5... O-O {[%clk 0:03:00]} 6. cxd5 {[%clk 0:03:00.5]} 6... exd5 {[%clk
0:02:59.8]} 7. Bd3 {[%clk 0:03:01]} 7... c6 {[%clk 0:03:00.2]} 8. O-O {[%clk
0:03:00.6]} 8... Bg4 {[%clk 0:02:59.7]} 9. Be2 {[%clk 0:02:56.4]} 9... Nbd7
{[%clk 0:02:58.3]} 10. Ne5 {[%clk 0:02:50.5]} 10... Bxe2 {[%clk 0:02:58.8]} 11.
Qxe2 {[%clk 0:02:51.4]} 11... a5 {[%clk 0:02:55.6]} 12. f4 {[%clk 0:02:49.5]}
12... Re8 {[%clk 0:02:55.9]} 13. Bd2 {[%clk 0:02:43.8]} 13... Nf8 {[%clk
0:02:55.9]} 14. Be1 {[%clk 0:02:43.9]} 14... N6d7 {[%clk 0:02:55.4]} 15. Qh5
{[%clk 0:02:40.1]} 15... g6 {[%clk 0:02:52.2]} 16. Qf3 {[%clk 0:02:39.5]} 16...
f6 {[%clk 0:02:47.7]} 17. Nd3 {[%clk 0:02:34.4]} 17... f5 {[%clk 0:02:34.5]} 18.
Ne5 {[%clk 0:02:30.9]} 18... Nf6 {[%clk 0:02:34.4]} 19. Bh4 {[%clk 0:02:28.5]}
19... Ne4 {[%clk 0:02:31.2]} 20. Bxe7 {[%clk 0:02:28]} 20... Qxe7 {[%clk
0:02:32.1]} 21. g4 {[%clk 0:02:21]} 21... Nd2 {[%clk 0:02:24.3]} 22. Qg2 {[%clk
0:02:20.8]} 22... Nxf1 {[%clk 0:02:24.3]} 23. Rxf1 {[%clk 0:02:21.3]} 23... fxg4
{[%clk 0:02:22.3]} 24. Qxg4 {[%clk 0:02:18.3]} 24... Kh8 {[%clk 0:02:21.7]} 25.
Rf2 {[%clk 0:02:16.3]} 25... Ne6 {[%clk 0:02:21.1]} 26. Kh1 {[%clk 0:02:11.3]}
26... Ng7 {[%clk 0:02:20]} 27. Qh3 {[%clk 0:02:03.4]} 27... Kg8 {[%clk
0:02:15.1]} 28. Rg2 {[%clk 0:02:02.3]} 28... Rad8 {[%clk 0:02:06.1]} 29. Ne2
{[%clk 0:01:57.6]} 29... c5 {[%clk 0:02:00.9]} 30. Ng1 {[%clk 0:01:56.3]} 30...
cxd4 {[%clk 0:02:00.5]} 31. exd4 {[%clk 0:01:57.2]} 31... Rc8 {[%clk 0:01:58.7]}
32. Qf3 {[%clk 0:01:51.5]} 32... Qe6 {[%clk 0:01:52.1]} 33. Ne2 {[%clk 0:01:49]}
33... Rc2 {[%clk 0:01:47.5]} 34. Nc3 {[%clk 0:01:44.3]} 34... Rxg2 {[%clk
0:01:46.2]} 35. Kxg2 {[%clk 0:01:43.9]} 35... Rd8 {[%clk 0:01:43.7]} 36. a4
{[%clk 0:01:37.6]} 36... Nf5 {[%clk 0:01:43.6]} 37. Qf2 {[%clk 0:01:37.4]} 37...
Qb6 {[%clk 0:01:34.2]} 38. Nb5 {[%clk 0:01:30.8]} 38... Rc8 {[%clk 0:01:22.5]}
39. Kh3 {[%clk 0:01:26.7]} 39... Qe6 {[%clk 0:01:19.5]} 40. Ng4 {[%clk
0:01:13.1]} 40... h5 {[%clk 0:01:16.3]} 41. Ne5 {[%clk 0:01:13.1]} 41... Kg7
{[%clk 0:00:46.5]} 42. Nc3 {[%clk 0:01:06.9]} 42... Ne3+ {[%clk 0:00:34.2]} 43.
Kh4 {[%clk 0:01:01.5]} 43... Nf5+ {[%clk 0:00:22]} 44. Kh3 {[%clk 0:01:01.1]}
44... Nxd4+ {[%clk 0:00:21.3]} 45. Kg2 {[%clk 0:00:58.5]} 45... Nf5 {[%clk
0:00:21.1]} 46. Qa7 {[%clk 0:00:55.1]} 46... Rc7 {[%clk 0:00:17.5]} 47. Qb8
{[%clk 0:00:54.9]} 47... Re7 {[%clk 0:00:15.7]} 48. Ne2 {[%clk 0:00:52.9]} 48...
d4 {[%clk 0:00:15.4]} 49. Qd8 {[%clk 0:00:51.7]} 49... Ne3+ {[%clk 0:00:11.7]}
50. Kf2 {[%clk 0:00:51.1]} 50... Nf5 {[%clk 0:00:12.6]} 51. Nxd4 {[%clk
0:00:47.4]} 51... Nxd4 {[%clk 0:00:11.8]} 52. Qxd4 {[%clk 0:00:48.3]} 52... Qf6
{[%clk 0:00:12.3]} 53. Qe4 {[%clk 0:00:47.7]} 53... g5 {[%clk 0:00:10]} 54. Kg3
{[%clk 0:00:45]} 54... Qxf4+ {[%clk 0:00:08.3]} 55. Qxf4 {[%clk 0:00:45.9]}
55... gxf4+ {[%clk 0:00:08.8]} 56. Kxf4 {[%clk 0:00:46.8]} 56... Rc7 {[%clk
0:00:09.2]} 57. Nd3 {[%clk 0:00:46.1]} 57... Rc2 {[%clk 0:00:08.7]} 58. h4
{[%clk 0:00:44.8]} 58... Rd2 {[%clk 0:00:09]} 59. Nc5 {[%clk 0:00:43.4]} 59...
Rxb2 {[%clk 0:00:08.5]} 60. Ne6+ {[%clk 0:00:43.3]} 60... Kh6 {[%clk 0:00:07.6]}
61. Nc5 {[%clk 0:00:44.2]} 61... b5 {[%clk 0:00:07.2]} 62. axb5 {[%clk
0:00:43.7]} 62... Rxb5 {[%clk 0:00:08.1]} 63. Nd3 {[%clk 0:00:44.2]} 63... Rb4+
{[%clk 0:00:08.7]} 64. Nxb4 {[%clk 0:00:42.6]} 64... axb4 {[%clk 0:00:09.6]} 65.
Ke4 {[%clk 0:00:43.5]} 65... Kg6 {[%clk 0:00:10.5]} 66. Kd4 {[%clk 0:00:43.8]}
66... Kf5 {[%clk 0:00:11.4]} 67. Kc4 {[%clk 0:00:44.6]} 67... Kg4 {[%clk
0:00:12.3]} 68. Kxb4 {[%clk 0:00:45.5]} 68... Kxh4 {[%clk 0:00:13.2]} 69. Kc3
{[%clk 0:00:46.4]} 69... Kg3 {[%clk 0:00:14.1]} 70. Kd2 {[%clk 0:00:47.3]} 70...
Kf2 {[%clk 0:00:15]} 71. Kd3 {[%clk 0:00:47.3]} 71... h4 {[%clk 0:00:15.9]} 72.
Ke4 {[%clk 0:00:48.2]} 72... h3 {[%clk 0:00:16.8]} 73. Kf4 {[%clk 0:00:49.1]}
73... h2 {[%clk 0:00:17.7]} 74. Kg4 {[%clk 0:00:50]} 74... h1=Q {[%clk
0:00:18.6]} 75. Kf5 {[%clk 0:00:49.7]} 75... Qf3+ {[%clk 0:00:19.5]} 76. Ke5
{[%clk 0:00:50.6]} 76... Ke3 {[%clk 0:00:20.1]} 77. Kd6 {[%clk 0:00:50.7]} 77...
Qf4+ {[%clk 0:00:21]} 78. Kd5 {[%clk 0:00:50.5]} 78... Qf5+ {[%clk 0:00:20.5]}
79. Kc6 {[%clk 0:00:50.1]} 79... Kd4 {[%clk 0:00:19.7]} 80. Kb7 {[%clk 0:00:51]}
80... Qg6 {[%clk 0:00:19.2]} 81. Ka8 {[%clk 0:00:51.9]} 81... Qh7 {[%clk
0:00:18.5]} 82. Kb8 {[%clk 0:00:51]} 82... Kc5 {[%clk 0:00:19.4]} 83. Ka8 {[%clk
0:00:51.9]} 83... Kb6 {[%clk 0:00:19.7]} 84. Kb8 {[%clk 0:00:52.8]} 84... Qh8#
{[%clk 0:00:20]} 0-1